[Event "DVM U12 2021-22"]
[Site "Naumburg"]
[Date "2022.03.25"]
[Round "1"]
[White "Graham, David B"]
[Black "Cwiklik, Jonah"]
[Result "1-0"]
[ECO "C50"]
[WhiteElo "2128"]
[BlackElo "1409"]
[Annotator "NA"]
[PlyCount "75"]
[EventDate "2022.03.25"]
[EventType "team-tourn"]
[EventRounds "7"]
[EventCountry "GER"]
[SourceTitle "playchess.com"]
[Source "ChessBase"]
[SourceQuality "1"]
[TimeControl "40/5400+30:1800+30"]

1. e4 {[%emt 0:00:04]} e5 {[%emt 0:00:08]} 2. Bc4 {[%emt 0:00:04]} Bc5 {[%emt 0:00:18]} 3. d3 {[%emt 0:01:30]} Nf6 {[%emt 0:00:32]} 4. Nf3 {[%emt 0:01:04]} Nc6 {[%emt 0:01:16]} 5. Nc3 {[%emt 0:01:18]} O-O {[%emt 0:01:31]} 6. Bg5 {[%emt 0:01:23]} Be7 {[%emt 0:02:29]} 7. O-O {[%emt 0:00:57]} d6 {[%emt 0:00:20]} 8. h3 {[%emt 0:00:40]} Be6 {[%emt 0:01:44]} 9. Bb3 {[%emt 0:01:17]} Nd7 {[%emt 0:01:35]} 10. Be3 {[%emt 0:01:54]} h6 {[%emt 0:01:12]} 11. Nd5 {[%emt 0:02:10]} Na5 {[%emt 0:02:30]} 12. Nxe7+ {[%emt 0:03:29]} Qxe7 {[%emt 0:00:20]} 13. Ba4 {[%emt 0:02:20]} a6 {[%emt 0:02:19]} 14. c3 {[%emt 0:02:29]} b5 {[%emt 0:00:41]} 15. Bc2 {[%emt 0:01:06]} c5 {[%emt 0:01:14]} 16. Nd2 {[%emt 0:01:56]} d5 {[%emt 0:01:53]} 17. d4 {[%emt 0:04:51]} cxd4 {[%emt 0:01:55]} 18. cxd4 {[%emt 0:01:40]} exd4 {[%emt 0:00:23]} 19. Bxd4 {[%emt 0:00:46]} Nc6 {[%emt 0:01:01]} 20. Nb3 {[%emt 0:03:19]} dxe4 {[%emt 0:01:15]} 21. Be3 {[%emt 0:04:49]} Bxb3 {[%emt 0:01:16]} 22. Bxb3 {[%emt 0:00:28]} Nc5 {[%emt 0:01:14]} 23. Bxf7+ {[%emt 0:11:18]} Qxf7 {[%emt 0:02:30]} 24. Bxc5 {[%emt 0:03:43]} Rfd8 {[%emt 0:01:07]} 25. Qg4 {[%emt 0:01:27]} Re8 {[%emt 0:03:12]} 26. Rfe1 {[%emt 0:04:35]} h5 {[%emt 0:05:11]} 27. Qe2 {[%emt 0:03:24]} Qc4 {[%emt 0:01:20]} 28. Rac1 {[%emt 0:09:12]} Qd3 {[%emt 0:01:43]} 29. Qxh5 {[%emt 0:07:10]} Re5 {[%emt 0:03:56]} 30. Qg4 {[%emt 0:01:56]} Qd2 {[%emt 0:07:08]} 31. Be3 {[%emt 0:01:57]} Qa5 {[%emt 0:01:47]} 32. Red1 {[%emt 0:01:57]} Na7 {[%emt 0:12:44]} 33. Rd7 {[%emt 0:02:55]} g5 {[%emt 0:03:26]} 34. Bxg5 {[%emt 0:01:01]} Re7 {[%emt 0:00:41]} 35. Rxe7 {[%emt 0:00:51]} Kf8 {[%emt 0:00:44]} 36. Qf5+ {[%emt 0:00:12]} Kg8 {[%emt 0:00:20]} 37. Qf7+ {[%emt 0:00:06]} Kh8 {[%emt 0:00:07]} 38. Bf6# 1-0

[Event "DVM U12 2021-22"]
[Site "Naumburg"]
[Date "2022.03.25"]
[Round "1"]
[White "Helms, Finn"]
[Black "Zhang, Yibo"]
[Result "1-0"]
[ECO "C54"]
[WhiteElo "1911"]
[BlackElo "1397"]
[Annotator "NA"]
[PlyCount "101"]
[EventDate "2022.03.25"]
[EventType "team-tourn"]
[EventRounds "7"]
[EventCountry "GER"]
[SourceTitle "playchess.com"]
[Source "ChessBase"]
[SourceQuality "1"]
[TimeControl "40/5400+30:1800+30"]

1. e4 {[%emt 0:00:04]} e5 {[%emt 0:00:07]} 2. Nf3 {[%emt 0:00:05]} Nc6 {[%emt 0:00:06]} 3. Bc4 {[%emt 0:00:05]} Bc5 {[%emt 0:00:11]} 4. c3 {[%emt 0:01:02]} Nf6 {[%emt 0:00:12]} 5. d4 {[%emt 0:00:16]} exd4 {[%emt 0:00:14]} 6. e5 {[%emt 0:00:48]} d5 {[%emt 0:00:09]} 7. Bb5 {[%emt 0:00:24]} Ne4 {[%emt 0:00:13]} 8. cxd4 {[%emt 0:00:27]} Bb6 {[%emt 0:00:11]} 9. Nc3 {[%emt 0:02:20]} Bg4 {[%emt 0:01:23]} 10. Be3 {[%emt 0:01:52]} O-O {[%emt 0:01:21]} 11. h3 {[%emt 0:06:09]} Bxf3 {[%emt 0:05:37]} 12. gxf3 {[%emt 0:17:18]} Nxc3 {[%emt 0:01:19]} 13. bxc3 {[%emt 0:00:15]} f6 {[%emt 0:06:34]} 14. f4 {[%emt 0:02:44]} fxe5 {[%emt 0:03:26]} 15. fxe5 {[%emt 0:00:20]} Qh4 {[%emt 0:06:05]} 16. Qg4 {[%emt 0:01:34]} Qxg4 {[%emt 0:04:02]} 17. hxg4 {[%emt 0:00:03]} Ba5 {[%emt 0:08:06]} 18. Kd2 {[%emt 0:01:50]} a6 {[%emt 0:12:43]} 19. Bd3 {[%emt 0:00:30]} g6 {[%emt 0:01:32]} 20. f4 {[%emt 0:01:46]} Nxd4 {[%emt 0:08:05]} 21. Bxd4 {[%emt 0:02:39]} Rxf4 {[%emt 0:00:12]} 22. Ke3 {[%emt 0:05:42]} Rxg4 {[%emt 0:00:30]} 23. Rag1 {[%emt 0:00:57]} Rxg1 {[%emt 0:00:43]} 24. Rxg1 {[%emt 0:02:07]} b5 {[%emt 0:06:21]} 25. Bf5 {[%emt 0:05:27]} Kf8 {[%emt 0:06:32]} 26. Bd7 {[%emt 0:02:18]} Rd8 {[%emt 0:11:41]} 27. Bc5+ {[%emt 0:00:26]} Kg7 {[%emt 0:02:29]} 28. e6 {[%emt 0:00:21]} Bxc3 {[%emt 0:04:35]} 29. e7 {[%emt 0:01:08]} d4+ {[%emt 0:01:02]} 30. Kd3 {[%emt 0:00:22]} Rb8 {[%emt 0:02:02]} 31. e8=Q {[%emt 0:00:26]} Rxe8 {[%emt 0:00:19]} 32. Bxe8 {[%emt 0:00:02]} Kf6 {[%emt 0:00:19]} 33. Bxd4+ {[%emt 0:00:05]} Bxd4 {[%emt 0:00:10]} 34. Kxd4 {[%emt 0:00:01]} c5+ {[%emt 0:00:20]} 35. Kxc5 {[%emt 0:00:05]} Kg7 {[%emt 0:00:43]} 36. Kb6 {[%emt 0:00:13]} Kh6 {[%emt 0:00:30]} 37. Kxa6 {[%emt 0:00:05]} b4 {[%emt 0:00:22]} 38. Kb5 {[%emt 0:00:05]} g5 {[%emt 0:00:07]} 39. Kxb4 {[%emt 0:00:06]} g4 {[%emt 0:00:11]} 40. Bd7 {[%emt 0:00:17]} Kh5 {[%emt 0:00:22]} 41. Rxg4 {[%emt 0:30:07]} h6 {[%emt 0:30:07]} 42. Rg1 {[%emt 0:00:16]} Kh4 {[%emt 0:00:09]} 43. Rh1+ {[%emt 0:00:07]} Kg5 {[%emt 0:00:11]} 44. a4 {[%emt 0:00:04]} Kf6 {[%emt 0:00:44]} 45. Rxh6+ {[%emt 0:00:05]} Kg7 {[%emt 0:00:07]} 46. Re6 {[%emt 0:00:12]} Kf7 {[%emt 0:00:25]} 47. a5 {[%emt 0:00:05]} Kf8 {[%emt 0:00:11]} 48. a6 {[%emt 0:00:04]} Kf7 {[%emt 0:00:23]} 49. a7 {[%emt 0:00:04]} Kg7 {[%emt 0:00:12]} 50. a8=Q {[%emt 0:00:06]} Kh7 {[%emt 0:00:15]} 51. Qe8 {[%emt 0:00:07]} 1-0

[Event "DVM U12 2021-22"]
[Site "Naumburg"]
[Date "2022.03.25"]
[Round "1"]
[White "Torosyan, Bagrat"]
[Black "Mohammadzadeh, Daris"]
[Result "0-1"]
[ECO "B27"]
[WhiteElo "1695"]
[BlackElo "1335"]
[Annotator "NA"]
[PlyCount "114"]
[EventDate "2022.03.25"]
[EventType "team-tourn"]
[EventRounds "7"]
[EventCountry "GER"]
[SourceTitle "playchess.com"]
[Source "ChessBase"]
[SourceQuality "1"]
[TimeControl "40/5400+30:1800+30"]

1. e4 {[%emt 0:00:10]} c5 {[%emt 0:00:01]} 2. Nf3 {[%emt 0:00:14]} g6 {[%emt 0:00:02]} 3. d4 {[%emt 0:00:13]} cxd4 {[%emt 0:00:01]} 4. Qxd4 {[%emt 0:00:14]} Nf6 {[%emt 0:00:03]} 5. Nc3 {[%emt 0:00:19]} Nc6 {[%emt 0:00:37]} 6. Qa4 {[%emt 0:00:09]} d6 {[%emt 0:00:34]} 7. Bd3 {[%emt 0:01:42]} Bd7 {[%emt 0:01:56]} 8. Qb3 {[%emt 0:01:07]} Bg7 {[%emt 0:04:47]} 9. O-O {[%emt 0:03:36]} Qc7 {[%emt 0:03:15]} 10. Nb5 {[%emt 0:06:04]} Qc8 {[%emt 0:12:10]} 11. Bf4 {[%emt 0:04:49]} O-O {[%emt 0:01:40]} 12. h3 {[%emt 0:02:17]} Be6 {[%emt 0:12:19]} 13. Qa4 {[%emt 0:17:28]} a6 14. Nbd4 {[%emt 0:01:35]} b5 {[%emt 0:03:26]} 15. Nxc6 {[%emt 0:01:46]} Qxc6 {[%emt 0:00:26]} 16. Qb4 {[%emt 0:02:20]} Bc4 {[%emt 0:01:35]} 17. Rfe1 {[%emt 0:13:05]} Nh5 {[%emt 0:04:02]} 18. Bxc4 {[%emt 0:17:34]} Nxf4 {[%emt 0:04:24]} 19. Bd5 {[%emt 0:03:14]} Nxd5 {[%emt 0:00:14]} 20. exd5 {[%emt 0:00:04]} Qxc2 {[%emt 0:04:23]} 21. Nd4 {[%emt 0:03:38]} a5 {[%emt 0:08:00]} 22. Nxc2 {[%emt 0:03:25]} axb4 {[%emt 0:01:26]} 23. Nxb4 {[%emt 0:01:17]} Bxb2 {[%emt 0:00:32]} 24. Rab1 {[%emt 0:00:05]} Bf6 {[%emt 0:00:52]} 25. Nc6 {[%emt 0:00:49]} Rfe8 {[%emt 0:00:24]} 26. Re2 {[%emt 0:02:22]} Ra3 {[%emt 0:04:17]} 27. Rxb5 {[%emt 0:01:26]} Kf8 {[%emt 0:00:46]} 28. Ra5 {[%emt 0:05:57]} Rxa5 {[%emt 0:04:33]} 29. Nxa5 {[%emt 0:00:13]} Rb8 {[%emt 0:00:03]} 30. Nc6 {[%emt 0:03:11]} Rb1+ {[%emt 0:01:21]} 31. Kh2 {[%emt 0:00:04]} Rd1 {[%emt 0:00:02]} 32. Nb4 {[%emt 0:01:24]} Bc3 {[%emt 0:01:50]} 33. Nc6 {[%emt 0:00:04]} Rxd5 {[%emt 0:00:45]} 34. a4 {[%emt 0:01:47]} Rc5 {[%emt 0:03:13]} 35. Nb8 {[%emt 0:01:11]} Ke8 {[%emt 0:00:38]} 36. Na6 {[%emt 0:01:02]} Ra5 {[%emt 0:00:21]} 37. Nc7+ {[%emt 0:00:37]} Kd7 {[%emt 0:00:01]} 38. Nb5 {[%emt 0:00:50]} Be5+ {[%emt 0:00:02]} 39. f4 {[%emt 0:00:32]} Bxf4+ {[%emt 0:00:32]} 40. g3 {[%emt 0:00:05]} Be5 {[%emt 0:00:01]} 41. Ra2 {[%emt 0:30:43]} Kc6 {[%emt 0:31:31]} 42. Rc2+ {[%emt 0:00:00]} Kd5 {[%emt 0:00:00]} 43. Rc7 {[%emt 0:00:00]} Rxa4 {[%emt 0:00:00]} 44. Rxe7 {[%emt 0:00:00]} Kc5 {[%emt 0:00:00]} 45. Na7 {[%emt 0:00:00]} Ra2+ {[%emt 0:00:00]} 46. Kg1 {[%emt 0:00:00]} Bxg3 {[%emt 0:00:00]} 47. Rxf7 {[%emt 0:00:00]} h5 {[%emt 0:00:00]} 48. Nc8 {[%emt 0:00:00]} d5 {[%emt 0:00:00]} 49. Rf3 {[%emt 0:00:00]} h4 {[%emt 0:00:00]} 50. Ne7 {[%emt 0:00:00]} Kc4 {[%emt 0:00:00]} 51. Nxg6 {[%emt 0:00:00]} d4 {[%emt 0:00:00]} 52. Ne7 {[%emt 0:00:00]} d3 {[%emt 0:00:00]} 53. Nf5 {[%emt 0:00:00]} d2 {[%emt 0:00:00]} 54. Ne3+ {[%emt 0:00:00]} Kd4 {[%emt 0:00:00]} 55. Nd1 {[%emt 0:00:00]} Ra1 {[%emt 0:00:00]} 56. Rf1 {[%emt 0:00:00]} Be1 {[%emt 0:00:00]} 57. Kg2 {[%emt 0:00:00]} Rxd1 {[%emt 0:00:00]} 0-1

[Event "DVM U12 2021-22"]
[Site "Naumburg"]
[Date "2022.03.25"]
[Round "1"]
[White "Dordevic, Tom"]
[Black "Beberhold, Otto Richard"]
[Result "1-0"]
[ECO "A06"]
[WhiteElo "1671"]
[BlackElo "1368"]
[Annotator "NA"]
[PlyCount "55"]
[EventDate "2022.03.25"]
[EventType "team-tourn"]
[EventRounds "7"]
[EventCountry "GER"]
[SourceTitle "playchess.com"]
[Source "ChessBase"]
[SourceQuality "1"]
[TimeControl "40/5400+30:1800+30"]

1. Nf3 {[%emt 0:00:04]} d5 {[%emt 0:00:04]} 2. g3 {[%emt 0:00:03]} e6 {[%emt 0:00:19]} 3. Bg2 {[%emt 0:00:06]} f5 {[%emt 0:00:04]} 4. d4 {[%emt 0:00:32]} Nf6 {[%emt 0:00:10]} 5. O-O {[%emt 0:00:22]} Bd6 {[%emt 0:00:07]} 6. c4 {[%emt 0:01:52]} c6 {[%emt 0:00:12]} 7. Nc3 {[%emt 0:02:31]} O-O {[%emt 0:00:44]} 8. Qb3 {[%emt 0:05:55]} Nbd7 {[%emt 0:01:33]} 9. Ng5 {[%emt 0:20:40]} Qe7 {[%emt 0:05:07]} 10. cxd5 {[%emt 0:05:47]} exd5 {[%emt 0:04:26]} 11. e4 {[%emt 0:13:39]} fxe4 {[%emt 0:00:56]} 12. Ncxe4 {[%emt 0:02:08]} h6 {[%emt 0:03:53]} 13. Nxd6 {[%emt 0:00:56]} hxg5 {[%emt 0:08:15]} 14. Nxc8 {[%emt 0:01:03]} Rfxc8 {[%emt 0:06:47]} 15. Bxg5 {[%emt 0:00:17]} Nb6 {[%emt 0:01:17]} 16. Rfe1 {[%emt 0:02:40]} Qd6 {[%emt 0:01:08]} 17. Bh3 {[%emt 0:03:00]} Re8 {[%emt 0:00:38]} 18. Bf4 {[%emt 0:00:36]} Qf8 {[%emt 0:02:25]} 19. Be6+ {[%emt 0:01:31]} Kh8 {[%emt 0:00:27]} 20. Qf3 {[%emt 0:07:12]} Qb4 {[%emt 0:04:21]} 21. Re5 {[%emt 0:04:24]} g6 {[%emt 0:02:10]} 22. Bg5 {[%emt 0:02:05]} Nbd7 {[%emt 0:03:47]} 23. Bxf6+ {[%emt 0:00:39]} Nxf6 {[%emt 0:00:11]} 24. Qxf6+ {[%emt 0:00:04]} Kh7 {[%emt 0:00:12]} 25. Bf7 {[%emt 0:01:21]} Qf8 {[%emt 0:01:05]} 26. Qxg6+ {[%emt 0:00:16]} Kh8 {[%emt 0:00:11]} 27. Rh5+ {[%emt 0:00:05]} Qh6 {[%emt 0:00:27]} 28. Qxh6# 1-0

[Event "DVM U12 2021-22"]
[Site "Naumburg"]
[Date "2022.03.25"]
[Round "1"]
[White "Wartenberg, Alissa"]
[Black "Sato, Kai Nathan"]
[Result "1-0"]
[ECO "C47"]
[WhiteElo "1670"]
[BlackElo "1151"]
[Annotator "NA"]
[PlyCount "67"]
[EventDate "2022.03.25"]
[EventType "team-tourn"]
[EventRounds "7"]
[EventCountry "GER"]
[SourceTitle "playchess.com"]
[Source "ChessBase"]
[SourceQuality "1"]
[TimeControl "40/5400+30:1800+30"]

1. e4 {[%emt 0:00:03]} e5 {[%emt 0:00:06]} 2. Nf3 {[%emt 0:00:03]} Nc6 {[%emt 0:00:10]} 3. Nc3 {[%emt 0:00:04]} Nf6 {[%emt 0:00:37]} 4. d4 {[%emt 0:00:04]} exd4 {[%emt 0:01:48]} 5. Nxd4 {[%emt 0:00:15]} d6 {[%emt 0:01:35]} 6. Bg5 {[%emt 0:00:45]} Be7 {[%emt 0:00:26]} 7. Nxc6 {[%emt 0:01:26]} bxc6 {[%emt 0:00:27]} 8. Bd3 {[%emt 0:00:23]} h6 {[%emt 0:00:44]} 9. Bh4 {[%emt 0:00:18]} O-O {[%emt 0:01:30]} 10. h3 {[%emt 0:00:47]} Nh7 {[%emt 0:00:51]} 11. Bg3 {[%emt 0:00:36]} Bf6 {[%emt 0:01:05]} 12. O-O {[%emt 0:02:49]} Rb8 {[%emt 0:02:06]} 13. Rb1 {[%emt 0:02:07]} Be6 {[%emt 0:00:50]} 14. Qd2 {[%emt 0:04:02]} Bxc3 {[%emt 0:02:57]} 15. Qxc3 {[%emt 0:00:26]} c5 {[%emt 0:02:26]} 16. Rbd1 {[%emt 0:00:24]} Rb6 {[%emt 0:04:38]} 17. Rfe1 {[%emt 0:03:57]} Qe7 {[%emt 0:07:19]} 18. b3 {[%emt 0:05:15]} Rd8 {[%emt 0:10:38]} 19. Bc4 {[%emt 0:01:31]} Nf8 {[%emt 0:03:11]} 20. Qf3 {[%emt 0:05:12]} Bxc4 {[%emt 0:03:58]} 21. bxc4 {[%emt 0:00:06]} Rb2 {[%emt 0:03:58]} 22. a3 {[%emt 0:02:07]} Rdb8 {[%emt 0:03:07]} 23. e5 {[%emt 0:01:58]} dxe5 {[%emt 0:08:54]} 24. Bxe5 {[%emt 0:00:50]} Rxc2 {[%emt 0:00:41]} 25. Bxg7 {[%emt 0:02:01]} Qg5 {[%emt 0:02:23]} 26. Bf6 {[%emt 0:00:16]} Qg6 {[%emt 0:01:34]} 27. Re4 {[%emt 0:01:45]} Rb3 {[%emt 0:08:21]} 28. Qxb3 {[%emt 0:01:34]} Qxe4 {[%emt 0:00:18]} 29. Qg3+ {[%emt 0:01:05]} Qg6 {[%emt 0:00:59]} 30. Qf4 {[%emt 0:00:43]} Ne6 {[%emt 0:02:36]} 31. Qe5 {[%emt 0:00:11]} Kh7 {[%emt 0:03:24]} 32. Rd7 {[%emt 0:01:35]} Rc1+ {[%emt 0:00:59]} 33. Kh2 {[%emt 0:00:07]} Rxc4 {[%emt 0:01:35]} 34. Qxe6 1-0

[Event "DVM U12 2021-22"]
[Site "Naumburg"]
[Date "2022.03.25"]
[Round "1"]
[White "Braun, Julian"]
[Black "Fruth, David"]
[Result "0-1"]
[ECO "B23"]
[WhiteElo "1620"]
[BlackElo "1607"]
[Annotator "NA"]
[PlyCount "120"]
[EventDate "2022.03.25"]
[EventType "team-tourn"]
[EventRounds "7"]
[EventCountry "GER"]
[SourceTitle "playchess.com"]
[Source "ChessBase"]
[SourceQuality "1"]
[TimeControl "40/5400+30:1800+30"]

1. e4 {[%emt 0:00:01]} c5 {[%emt 0:00:04]} 2. Nc3 {[%emt 0:00:05]} g6 {[%emt 0:00:52]} 3. d4 {[%emt 0:00:04]} Bg7 {[%emt 0:01:52]} 4. Be3 {[%emt 0:04:08]} Nc6 {[%emt 0:02:33]} 5. d5 {[%emt 0:01:38]} Nd4 {[%emt 0:01:35]} 6. Qd2 {[%emt 0:06:58]} d6 {[%emt 0:03:01]} 7. f3 {[%emt 0:02:51]} Bd7 {[%emt 0:04:12]} 8. h4 {[%emt 0:06:46]} h5 {[%emt 0:04:24]} 9. Nge2 {[%emt 0:03:04]} Nxe2 {[%emt 0:03:23]} 10. Bxe2 {[%emt 0:00:08]} b5 {[%emt 0:02:16]} 11. g4 {[%emt 0:12:18]} hxg4 {[%emt 0:01:24]} 12. fxg4 {[%emt 0:00:04]} Nf6 {[%emt 0:07:01]} 13. g5 {[%emt 0:02:28]} b4 {[%emt 0:00:30]} 14. gxf6 {[%emt 0:01:53]} bxc3 {[%emt 0:01:45]} 15. bxc3 {[%emt 0:00:38]} Bxf6 {[%emt 0:00:06]} 16. Bg5 {[%emt 0:01:20]} Bg7 {[%emt 0:00:40]} 17. Qd3 {[%emt 0:02:17]} Rb8 {[%emt 0:05:46]} 18. Qf3 {[%emt 0:02:45]} Qa5 {[%emt 0:01:54]} 19. Bd2 {[%emt 0:01:18]} Rb2 {[%emt 0:02:11]} 20. Bc4 {[%emt 0:08:01]} Rxc2 {[%emt 0:02:12]} 21. Rb1 {[%emt 0:01:21]} Ba4 {[%emt 0:06:56]} 22. Rb8+ {[%emt 0:03:52]} Kd7 {[%emt 0:00:01]} 23. Rxh8 {[%emt 0:00:35]} Bxh8 {[%emt 0:00:03]} 24. Rh3 {[%emt 0:03:08]} Ke8 {[%emt 0:02:53]} 25. h5 {[%emt 0:01:46]} gxh5 {[%emt 0:01:23]} 26. Rg3 {[%emt 0:01:50]} Kd7 {[%emt 0:11:36]} 27. Rg8 {[%emt 0:01:54]} Kc7 {[%emt 0:01:18]} 28. Rxh8 {[%emt 0:00:53]} Qb6 {[%emt 0:00:07]} 29. Ke2 {[%emt 0:03:24]} Qb2 {[%emt 0:01:39]} 30. Qe3 {[%emt 0:01:07]} Qc1 {[%emt 0:00:38]} 31. e5 {[%emt 0:01:55]} Bd7 {[%emt 0:02:49]} 32. exd6+ {[%emt 0:00:35]} exd6 {[%emt 0:00:04]} 33. Rh7 {[%emt 0:03:59]} Bg4+ {[%emt 0:00:23]} 34. Kd3 {[%emt 0:00:57]} Bf5+ {[%emt 0:00:28]} 35. Ke2 {[%emt 0:00:05]} Rxd2+ {[%emt 0:00:36]} 36. Qxd2 {[%emt 0:00:26]} Qxd2+ {[%emt 0:00:04]} 37. Kxd2 {[%emt 0:00:02]} Bxh7 {[%emt 0:00:12]} 38. Ke3 {[%emt 0:00:47]} Kd7 {[%emt 0:08:32]} 39. Be2 {[%emt 0:01:05]} Bg6 {[%emt 0:00:07]} 40. Kf4 {[%emt 0:01:53]} f6 {[%emt 0:00:06]} 41. Ke3 {[%emt 0:30:17]} Ke7 {[%emt 0:32:52]} 42. c4 {[%emt 0:00:33]} Bb1 {[%emt 0:01:20]} 43. a3 {[%emt 0:00:28]} Ba2 {[%emt 0:02:02]} 44. Kd3 {[%emt 0:00:33]} h4 {[%emt 0:00:15]} 45. Bg4 {[%emt 0:01:27]} f5 {[%emt 0:00:13]} 46. Bh3 {[%emt 0:00:19]} Kf6 {[%emt 0:00:17]} 47. Bf1 {[%emt 0:01:02]} Bb1+ {[%emt 0:01:23]} 48. Kc3 {[%emt 0:00:04]} Kg5 {[%emt 0:00:22]} 49. Kb3 {[%emt 0:00:37]} Kg4 {[%emt 0:00:08]} 50. Ka4 {[%emt 0:00:21]} h3 {[%emt 0:00:19]} 51. Kb5 {[%emt 0:00:30]} h2 {[%emt 0:00:06]} 52. Bg2 {[%emt 0:00:15]} Be4 {[%emt 0:00:02]} 53. Bxe4 {[%emt 0:00:31]} fxe4 {[%emt 0:00:01]} 54. Kc6 {[%emt 0:00:01]} h1=Q {[%emt 0:00:12]} 55. Kxd6 {[%emt 0:00:10]} e3 {[%emt 0:00:10]} 56. Kxc5 {[%emt 0:00:25]} e2 {[%emt 0:00:06]} 57. d6 {[%emt 0:00:13]} e1=Q {[%emt 0:00:06]} 58. d7 {[%emt 0:00:09]} Qe5+ {[%emt 0:00:07]} 59. Kb4 {[%emt 0:00:10]} a5+ {[%emt 0:00:16]} 60. Kb3 {[%emt 0:00:20]} Qb1+ 0-1

[Event "DVM U12 2021-22"]
[Site "Naumburg"]
[Date "2022.03.25"]
[Round "1"]
[White "Koberstein, Simon"]
[Black "Merenda, Lukas-Benedikt"]
[Result "1-0"]
[ECO "C50"]
[WhiteElo "1462"]
[BlackElo "1479"]
[Annotator "NA"]
[PlyCount "79"]
[EventDate "2022.03.25"]
[EventType "team-tourn"]
[EventRounds "7"]
[EventCountry "GER"]
[SourceTitle "playchess.com"]
[Source "ChessBase"]
[SourceQuality "1"]
[TimeControl "40/5400+30:1800+30"]

1. e4 {[%emt 0:00:03]} e5 {[%emt 0:00:00]} 2. Nf3 {[%emt 0:00:08]} Nc6 {[%emt 0:00:00]} 3. Bc4 {[%emt 0:00:10]} Bc5 {[%emt 0:00:00]} 4. d3 {[%emt 0:00:17]} Nf6 {[%emt 0:03:49]} 5. c3 {[%emt 0:01:53]} O-O {[%emt 0:07:28]} 6. O-O {[%emt 0:03:21]} a6 {[%emt 0:04:07]} 7. Nbd2 {[%emt 0:04:18]} d6 {[%emt 0:03:55]} 8. h3 {[%emt 0:02:11]} h6 {[%emt 0:04:56]} 9. Re1 {[%emt 0:03:24]} Re8 {[%emt 0:04:38]} 10. Nf1 {[%emt 0:02:47]} Na5 {[%emt 0:09:00]} 11. Bb3 {[%emt 0:03:46]} c6 {[%emt 0:04:20]} 12. Bc2 {[%emt 0:04:25]} Qb6 {[%emt 0:04:47]} 13. Qd2 {[%emt 0:05:41]} d5 {[%emt 0:04:10]} 14. b4 {[%emt 0:06:54]} Bd6 {[%emt 0:01:15]} 15. bxa5 {[%emt 0:02:30]} Qxa5 16. a3 {[%emt 0:10:41]} dxe4 {[%emt 0:07:53]} 17. dxe4 {[%emt 0:03:49]} Rd8 {[%emt 0:01:11]} 18. c4 {[%emt 0:04:34]} Qc7 {[%emt 0:01:34]} 19. Qc3 {[%emt 0:06:27]} Bc5 {[%emt 0:08:16]} 20. Be3 {[%emt 0:03:24]} Bxe3 {[%emt 0:04:26]} 21. Nxe3 {[%emt 0:01:35]} Re8 {[%emt 0:00:42]} 22. c5 {[%emt 0:03:54]} Be6 {[%emt 0:04:43]} 23. Rad1 {[%emt 0:05:31]} Nh5 {[%emt 0:01:45]} 24. Rd6 {[%emt 0:02:38]} f6 {[%emt 0:01:18]} 25. Bb3 {[%emt 0:04:53]} Qf7 {[%emt 0:01:35]} 26. Bxe6 {[%emt 0:01:22]} Rxe6 {[%emt 0:00:23]} 27. Nf5 {[%emt 0:01:26]} Rxd6 {[%emt 0:04:23]} 28. Nxd6 {[%emt 0:00:14]} Qe7 {[%emt 0:01:15]} 29. Nh4 {[%emt 0:01:43]} g6 {[%emt 0:02:02]} 30. Nxg6 {[%emt 0:01:46]} Qg7 {[%emt 0:00:02]} 31. Nh4 {[%emt 0:00:52]} Nf4 {[%emt 0:01:36]} 32. Ndf5 {[%emt 0:02:05]} Qg5 {[%emt 0:01:08]} 33. Kh2 {[%emt 0:01:28]} Rd8 {[%emt 0:01:18]} 34. Re3 {[%emt 0:01:07]} Nh5 {[%emt 0:00:54]} 35. Rd3 {[%emt 0:01:51]} Rf8 {[%emt 0:03:08]} 36. Rd7 {[%emt 0:00:29]} Qf4+ {[%emt 0:01:04]} 37. Kg1 {[%emt 0:00:05]} Qxe4 {[%emt 0:00:36]} 38. Qb3+ {[%emt 0:00:36]} Qd5 {[%emt 0:01:48]} 39. Nxh6+ {[%emt 0:00:11]} Kh8 {[%emt 0:00:07]} 40. Ng6# 1-0

[Event "DVM U12 2021-22"]
[Site "Naumburg"]
[Date "2022.03.25"]
[Round "1"]
[White "Eichner, Tim"]
[Black "Lu, Yunong Elias"]
[Result "0-1"]
[ECO "B15"]
[WhiteElo "1460"]
[BlackElo "1677"]
[Annotator "NA"]
[PlyCount "92"]
[EventDate "2022.03.25"]
[EventType "team-tourn"]
[EventRounds "7"]
[EventCountry "GER"]
[SourceTitle "playchess.com"]
[Source "ChessBase"]
[SourceQuality "1"]
[TimeControl "40/5400+30:1800+30"]

1. e4 {[%emt 0:00:02]} c6 {[%emt 0:00:10]} 2. d4 {[%emt 0:00:05]} d5 {[%emt 0:00:15]} 3. Nc3 {[%emt 0:00:04]} dxe4 {[%emt 0:00:13]} 4. Nxe4 {[%emt 0:00:07]} Nf6 {[%emt 0:00:13]} 5. Nc3 {[%emt 0:00:34]} Bf5 {[%emt 0:02:14]} 6. Nf3 {[%emt 0:00:46]} e6 {[%emt 0:01:09]} 7. Bd3 {[%emt 0:00:29]} Bxd3 {[%emt 0:01:24]} 8. Qxd3 {[%emt 0:00:16]} Bd6 {[%emt 0:01:44]} 9. Bg5 {[%emt 0:00:58]} Nbd7 {[%emt 0:01:04]} 10. Ne4 {[%emt 0:01:36]} Be7 {[%emt 0:02:10]} 11. Ne5 {[%emt 0:05:14]} Nxe5 {[%emt 0:06:00]} 12. dxe5 {[%emt 0:02:53]} Qa5+ {[%emt 0:03:07]} 13. Kf1 {[%emt 0:01:20]} Nxe4 {[%emt 0:02:36]} 14. Bxe7 {[%emt 0:01:36]} Nd2+ {[%emt 0:01:51]} 15. Kg1 {[%emt 0:00:36]} Kxe7 {[%emt 0:01:38]} 16. Qd6+ {[%emt 0:00:21]} Ke8 {[%emt 0:00:10]} 17. b4 {[%emt 0:00:04]} Qd5 {[%emt 0:00:23]} 18. Qc7 {[%emt 0:01:24]} Nc4 {[%emt 0:01:57]} 19. Qxb7 {[%emt 0:01:02]} Rd8 {[%emt 0:00:44]} 20. h3 {[%emt 0:00:51]} Nxe5 {[%emt 0:01:49]} 21. Kh2 {[%emt 0:01:51]} Qd7 {[%emt 0:02:51]} 22. Qa6 {[%emt 0:01:57]} Qc7 {[%emt 0:01:11]} 23. g3 {[%emt 0:01:16]} Qb6 {[%emt 0:02:45]} 24. Qe2 {[%emt 0:01:15]} Rd2 {[%emt 0:00:28]} 25. Qxd2 {[%emt 0:01:42]} Nf3+ {[%emt 0:00:16]} 26. Kg2 {[%emt 0:00:06]} Nxd2 {[%emt 0:00:12]} 27. Rad1 {[%emt 0:00:04]} Ne4 {[%emt 0:00:52]} 28. Rhf1 {[%emt 0:00:23]} Ke7 {[%emt 0:03:59]} 29. a3 {[%emt 0:00:37]} Rd8 {[%emt 0:01:51]} 30. Rde1 {[%emt 0:01:04]} f5 {[%emt 0:01:52]} 31. Re3 {[%emt 0:01:28]} Rd2 {[%emt 0:00:39]} 32. Kf3 {[%emt 0:01:55]} Ng5+ {[%emt 0:00:56]} 33. Kf4 {[%emt 0:00:14]} Kf6 {[%emt 0:00:25]} 34. g4 {[%emt 0:00:12]} Nxh3+ {[%emt 0:00:47]} 35. Kg3 {[%emt 0:00:50]} f4+ {[%emt 0:01:25]} 36. Kxh3 {[%emt 0:00:12]} fxe3 {[%emt 0:00:15]} 37. fxe3+ {[%emt 0:00:06]} Kg5 {[%emt 0:00:53]} 38. Rf3 {[%emt 0:00:23]} Qb8 {[%emt 0:01:05]} 39. Rf4 {[%emt 0:00:21]} Qxf4 {[%emt 0:00:33]} 40. exf4+ {[%emt 0:00:11]} Kxf4 {[%emt 0:00:10]} 41. b5 {[%emt 0:30:11]} cxb5 {[%emt 0:30:17]} 42. a4 {[%emt 0:00:02]} Rxc2 {[%emt 0:00:27]} 43. axb5 {[%emt 0:00:02]} g6 {[%emt 0:00:28]} 44. b6 {[%emt 0:00:12]} axb6 {[%emt 0:00:07]} 45. g5 {[%emt 0:00:09]} Kf3 {[%emt 0:00:12]} 46. Kh4 {[%emt 0:00:11]} Rh2# {[%emt 0:00:06]} 0-1